bitfinex/quotes_SOLUSD_20240821
["timestamp","ask_amount","ask_price","bid_price","bid_amount"]
[1724246100293,7.35645236,141.18,141.13,33.3099]
[1724246100487,7.0833,141.18,141.13,41.81217096]
[1724246100677,7.0833,141.18,141.14,7.085]
[1724246101188,7.0833,141.18,141.15,1.41677665]
[1724246101569,25.05843371,141.22,141.15,7.0845]
[1724246101776,33.43,141.21,141.15,7.0845]
[1724246101996,33.43,141.21,141.14,7.085]
[1724246102178,33.43,141.21,141.13,40.3954]
[1724246102179,7.0837,141.17,141.13,40.3954]
[1724246102684,7.0833,141.18,141.13,40.3954]
[1724246104571,7.0828,141.19,141.14,7.085]
[1724246104801,20.0,141.18,141.14,7.085]
[1724246105376,20.0,141.18,141.15,7.0846]
[1724246107082,27.0822,141.2,141.15,7.0846]
[1724246108411,13.43,141.21,141.16,15.06996219]
[1724246108412,20.5118,141.21,141.16,15.06996219]
[1724246108590,7.0818,141.21,141.16,15.06996219]
[1724246108989,7.0818,141.21,141.17,8.49999642]
[1724246109210,7.0818,141.21,141.17,7.0835]
[1724246109681,7.0818,141.21,141.16,13.6535]
[1724246109882,7.0818,141.21,141.17,0.12549]
[1724246110084,14.43603371,141.22,141.17,8.49984696]
[1724246110282,20.0,141.21,141.17,7.0834]
[1724246110479,27.0817,141.21,141.16,13.6536]
[1724246110706,7.0817,141.21,141.16,13.6536]
[1724246111008,13.43,141.26,141.2,7.0821]
[1724246111307,7.0799,141.25,141.2,7.082]
[1724246111477,7.0799,141.25,141.2,8.49811351]
[1724246111910,7.0799,141.25,141.21,1.41611216]
[1724246112294,7.0799,141.25,141.2,7.082]
[1724246113389,13.43,141.26,141.21,7.0813]
[1724246113597,27.0798,141.25,141.2,7.0819]
[1724246114916,27.0798,141.25,141.21,1.41611179]
[1724246115086,25.05486165,141.28,141.21,1.41611179]
[1724246115087,7.0787,141.27,141.22,7.20649]
[1724246115279,7.0787,141.27,141.23,1.41587006]
[1724246115983,7.0787,141.27,141.22,7.20649]
[1724246116489,7.0791,141.26,141.22,7.20649]
[1724246116889,14.4362557,141.28,141.24,7.0801]
[1724246117100,14.4362557,141.28,141.25,1.41572051]
[1724246117720,7.0785,141.28,141.25,1.41572051]
[1724246121886,7.0785,141.28,141.26,16.2891]
[1724246122095,14.43416988,141.3,141.27,1.41569762]
[1724246122294,14.43416988,141.3,141.27,8.49409762]
[1724246122295,7.35656988,141.3,141.27,8.49409762]
[1724246122598,387.8,141.38,141.28,0.25098]
[1724246122916,7.074,141.37,141.31,7.0762]
[1724246123085,7.35474854,141.37,141.32,1.4149799]
[1724246123290,7.0742,141.36,141.32,1.4149799]
[1724246123591,7.0742,141.36,141.31,7.0765]
[1724246124391,7.0742,141.36,141.3,7.20249]
[1724246124714,13.43,141.36,141.3,0.12549]
[1724246125603,13.43,141.36,141.29,6.3974]
[1724246125810,7.076,141.33,141.29,6.3974]
[1724246127517,7.0761,141.32,141.29,6.3974]
[1724246127718,13.43,141.34,141.26,16.2891]
[1724246127895,7.0779,141.29,141.26,16.2891]
[1724246137536,7.0783,141.28,141.26,16.2891]
[1724246137728,25.04518752,141.33,141.23,17.7007]
[1724246137729,7.079,141.27,141.23,17.7007]
[1724246138137,7.0791,141.26,141.22,29.0434]
[1724246138634,13.43,141.28,141.22,6.1759]
[1724246138840,7.0802,141.24,141.22,6.1759]
[1724246139742,23.9367,141.32,141.22,23.8784]
[1724246140040,33.43,141.31,141.22,23.8784]
[1724246140429,20.0,141.31,141.23,0.25098]
[1724246140743,20.0,141.31,141.24,17.7]
[1724246140931,20.0,141.31,141.25,8.49522797]
[1724246141249,7.0777,141.29,141.25,1.41572797]
[1724246141424,20.0,141.31,141.25,7.0795]
[1724246141628,7.35568752,141.33,141.3,6.0741]
[1724246141847,13.43,141.4,141.31,1.41504071]
[1724246142017,7.074,141.37,141.31,1.41504071]
[1724246142937,7.0731,141.38,141.32,7.0757]
[1724246143151,7.0755,141.34,141.3,6.0741]
[1724246146341,7.0758,141.33,141.3,6.0741]
[1724246147561,7.0752,141.34,141.3,6.0741]
[1724246147771,7.0752,141.34,141.3,7.48937039]
[1724246149038,25.03505444,141.39,141.3,7.48937039]
[1724246149364,7.0741,141.36,141.31,7.0765]
[1724246149558,7.0741,141.36,141.32,1.41493327]
[1724246150447,7.0737,141.37,141.33,1.41493352]
[1724246150749,14.42525444,141.39,141.34,7.20049]
[1724246150952,14.42525444,141.39,141.35,1.41469227]
[1724246151170,7.0727,141.39,141.35,1.41469227]
[1724246151473,7.0727,141.39,141.34,7.20049]
[1724246152749,7.0727,141.39,141.34,0.12549]
[1724246154046,7.0731,141.38,141.33,24.7639]
[1724246156657,7.0736,141.37,141.33,24.7639]
[1724246156880,7.36092566,141.4,141.34,1.41479527]
[1724246157064,27.073,141.39,141.34,8.48979527]
[1724246157577,7.0732,141.38,141.33,24.7639]
[1724246157757,7.0732,141.38,141.34,1.54020367]
[1724246158170,7.0732,141.38,141.34,0.12549]
[1724246158487,7.0732,141.38,141.34,0.25098]
[1724246160993,7.0732,141.38,141.33,24.7639]
[1724246161480,7.0738,141.37,141.33,17.6884]
[1724246161986,20.0,141.39,141.31,7.0764]
[1724246162281,7.0746,141.35,141.3,30.8433]
[1724246162586,33.7,141.38,141.3,6.0741]
[1724246162788,7.0756,141.33,141.3,6.0741]
[1724246163461,7.0762,141.32,141.3,6.0741]
[1724246164659,7.0762,141.32,141.29,16.0767]
[1724246164864,7.0762,141.32,141.27,24.7742]
[1724246165984,7.0757,141.33,141.28,7.0781]
[1724246166671,7.0757,141.33,141.29,0.12549]
[1724246166891,7.0757,141.33,141.29,0.25098]
[1724246167381,7.0757,141.33,141.29,0.12549]
[1724246167687,7.0757,141.33,141.28,7.0781]
[1724246169084,7.078,141.29,141.26,21.4106]
[1724246171466,7.0771,141.3,141.26,21.4106]
[1724246174004,17.6898,141.33,141.26,21.4106]
[1724246174190,15.2152,141.35,141.27,1.41543251]
[1724246174191,20.0,141.32,141.27,1.41543251]
[1724246174372,7.0766,141.31,141.27,8.49363251]
[1724246174558,20.0,141.32,141.28,7.20359]
[1724246174766,15.2152,141.35,141.29,1.41524432]
[1724246175290,7.0759,141.33,141.29,1.41524432]
[1724246176194,7.0759,141.33,141.29,8.49284432]
[1724246176491,7.0759,141.33,141.3,1.41524612]
[1724246176661,7.0759,141.33,141.29,7.0776]
[1724246177260,7.0759,141.33,141.28,7.32898]
[1724246177763,7.0759,141.33,141.29,1.41526342]
[1724246179067,7.0752,141.34,141.29,8.49266342]
[1724246181608,17.6854,141.36,141.31,7.0763]
[1724246181609,7.0744,141.36,141.31,7.0763]
[1724246181774,7.0744,141.36,141.32,1.54039605]
[1724246182085,7.0744,141.36,141.32,1.41490605]
[1724246182799,7.0744,141.36,141.31,45.0]
[1724246183004,7.0744,141.36,141.32,7.20139]
[1724246183907,7.0744,141.36,141.31,7.0766]
[1724246184088,7.0751,141.34,141.3,17.6925]
[1724246184606,7.0756,141.33,141.28,7.0779]
[1724246184983,7.0756,141.33,141.27,17.6955]
[1724246184984,7.0756,141.33,141.29,7.0775]
[1724246185607,7.0762,141.32,141.28,7.0779]
[1724246188513,7.0766,141.31,141.27,17.6955]
[1724246188710,33.7,141.34,141.26,21.4106]
[1724246188903,37.6894,141.33,141.25,7.0795]
[1724246189404,7.078,141.29,141.24,24.7795]
[1724246189812,33.7,141.32,141.24,24.7795]
[1724246189813,7.0782,141.28,141.24,24.7795]
[1724246191310,7.0776,141.29,141.25,8.49520665]
[1724246191885,37.6894,141.33,141.26,7.0789]
[1724246192088,37.6894,141.33,141.27,1.41546486]
[1724246192307,37.6894,141.33,141.26,7.0789]
[1724246192911,7.0769,141.31,141.26,7.0789]
[1724246193208,7.0769,141.31,141.27,7.0786]
[1724246193917,387.8,141.35,141.26,17.82299]
[1724246193918,7.0762,141.32,141.28,8.4933444]
[1724246194130,7.0762,141.32,141.28,7.078]
[1724246195408,17.6863,141.36,141.28,7.078]
[1724246195607,7.0757,141.33,141.28,23.596]
[1724246195911,7.0757,141.33,141.29,1.41526239]
[1724246196081,7.0753,141.34,141.29,8.49256239]
[1724246196287,20.0,141.33,141.3,1.41516687]
[1724246196491,20.0,141.33,141.3,15.06646687]
[1724246196690,20.0,141.34,141.3,13.6513]
[1724246197085,7.0737,141.37,141.32,7.0759]
[1724246197288,7.0737,141.37,141.33,1.41487867]
[1724246198115,7.0737,141.37,141.32,7.0759]
[1724246198713,7.36481801,141.38,141.31,7.0765]
[1724246198913,20.0,141.37,141.31,7.0765]
[1724246199819,7.0747,141.35,141.31,7.0765]
[1724246200694,7.0747,141.35,141.31,5.9765]
[1724246201099,7.0747,141.35,141.3,31.3436]
[1724246202827,7.0751,141.34,141.3,31.3436]
[1724246203125,20.0,141.37,141.3,6.5743]
[1724246203295,7.0752,141.34,141.3,6.5743]
[1724246203496,7.0752,141.34,141.3,7.98943294]
[1724246204023,7.0752,141.34,141.3,6.5743]
[1724246204600,7.0752,141.34,141.3,13.6514]
[1724246208902,7.0739,141.37,141.33,7.0756]
[1724246209703,32.8948,141.41,141.3,40.2743]
[1724246209903,7.0729,141.39,141.34,7.075]
[1724246210426,32.8948,141.41,141.34,7.075]
[1724246210427,7.0732,141.38,141.34,7.075]
[1724246210800,7.0727,141.39,141.34,7.075]
[1724246211635,7.0727,141.39,141.35,1.41469205]
[1724246212008,7.0727,141.39,141.34,7.075]
[1724246212703,7.0733,141.38,141.34,7.075]
[1724246214513,33.7,141.38,141.3,6.5743]
[1724246214712,7.0757,141.33,141.26,6.0891]
[1724246215037,7.0761,141.32,141.28,23.596]
[1724246215209,7.0761,141.32,141.28,16.518]
[1724246215810,7.0761,141.32,141.28,17.93331331]
[1724246216114,7.0761,141.32,141.28,16.518]
[1724246216644,33.7,141.36,141.28,23.596]
[1724246216645,7.0757,141.33,141.28,23.596]
[1724246217422,7.0757,141.33,141.29,0.12549]
[1724246217623,17.6868,141.35,141.28,16.518]
[1724246217836,7.077,141.31,141.27,17.6958]
[1724246218945,33.7,141.32,141.25,16.5473]
[1724246219445,7.0777,141.29,141.25,16.5473]
[1724246219807,7.0781,141.28,141.24,17.6996]
[1724246221232,7.0781,141.28,141.25,1.41571082]
[1724246221645,7.0781,141.28,141.24,17.6996]
[1724246225143,7.0781,141.28,141.25,1.41569984]
[1724246225650,7.0781,141.28,141.24,17.6996]
[1724246226857,7.0791,141.26,141.22,16.5427]
[1724246227060,37.692,141.31,141.21,24.7845]
[1724246227061,7.0796,141.25,141.21,24.7845]
[1724246227355,7.0796,141.25,141.18,22.057]
[1724246227356,7.0805,141.24,141.19,7.0825]
[1724246227663,7.0805,141.24,141.2,7.0821]
[1724246227832,7.0805,141.24,141.19,7.0824]
[1724246228751,7.0805,141.24,141.18,39.7646]
[1724246228941,7.0805,141.24,141.2,7.0821]
[1724246229130,7.0805,141.24,141.19,7.0824]
[1724246229328,7.0805,141.24,141.2,0.12549]
[1724246229927,7.0797,141.25,141.2,7.20749]
[1724246232734,7.0803,141.24,141.2,0.12549]
[1724246233138,7.0803,141.24,141.2,7.20759]
[1724246235347,7.0803,141.24,141.2,0.12549]
[1724246236174,7.0803,141.24,141.19,7.0824]
[1724246236555,7.0803,141.24,141.2,8.49815015]
[1724246236856,7.0803,141.24,141.2,8.62364015]
[1724246237359,7.0803,141.24,141.2,7.20749]
[1724246237557,7.0803,141.24,141.2,0.12549]
[1724246237762,7.0803,141.24,141.19,7.0825]
[1724246240646,7.0806,141.23,141.19,7.0825]
[1724246241051,7.0812,141.22,141.18,24.7905]
[1724246241463,15.3006,141.25,141.18,17.7076]
[1724246241642,20.0,141.24,141.18,17.7076]
[1724246242973,7.0811,141.22,141.18,24.7907]
[1724246245649,7.0816,141.21,141.17,7.0836]
[1724246246445,7.0813,141.22,141.18,7.20849]
[1724246248484,7.0808,141.23,141.19,8.49873262]
[1724246250273,20.0,141.24,141.19,17.7064]
[1724246250511,23.9566,141.28,141.2,0.25098]
[1724246250512,37.4566,141.28,141.2,0.25098]
[1724246250798,13.5,141.26,141.2,7.20739]
[1724246251000,7.0808,141.23,141.2,0.12549]
[1724246251214,7.0803,141.24,141.19,24.789]
[1724246251378,7.0803,141.24,141.2,7.20749]
[1724246252510,7.0803,141.24,141.19,24.7889]
[1724246253701,7.0807,141.23,141.19,24.789]
[1724246255007,7.0802,141.24,141.2,1.41618943]
[1724246255378,7.0802,141.24,141.19,24.789]
[1724246255684,7.0802,141.24,141.2,0.12549]
[1724246257418,7.0802,141.24,141.2,7.20759]
[1724246257901,7.0792,141.26,141.21,17.7035]
[1724246258119,7.0792,141.26,141.22,1.41593895]
[1724246259597,7.0792,141.26,141.22,8.49673895]
[1724246259798,404.1791,141.29,141.23,17.7012]
[1724246259997,404.1791,141.29,141.24,1.54117639]
[1724246260213,27.0785,141.28,141.24,1.54117639]
[1724246260525,27.0785,141.28,141.24,0.12549]
[1724246260721,7.0787,141.27,141.24,0.12549]
[1724246260933,7.0787,141.27,141.23,17.7012]
[1724246261523,7.0792,141.26,141.22,7.0806]
[1724246261704,7.0792,141.26,141.21,7.0815]
[1724246262004,7.0792,141.26,141.22,0.12549]
[1724246262822,7.0792,141.26,141.21,7.0815]
[1724246264031,7.0797,141.25,141.21,7.0815]
[1724246265416,7.0797,141.25,141.21,8.49752055]
[1724246266913,7.0797,141.25,141.21,7.0815]
[1724246267229,7.0803,141.24,141.2,31.13959]
[1724246267430,7.0803,141.24,141.21,0.12549]
[1724246267607,7.0797,141.25,141.21,7.20669]
[1724246268307,7.0793,141.26,141.21,7.20669]
[1724246271129,7.0793,141.26,141.22,1.41594299]
[1724246271304,7.0787,141.27,141.23,7.20609]
[1724246271511,7.0787,141.27,141.24,1.4158001]
[1724246271913,27.0782,141.28,141.24,1.4158001]
[1724246272513,7.39845002,141.29,141.24,7.0797]
[1724246272711,7.078,141.29,141.25,0.12549]
[1724246273923,20.0,141.28,141.25,0.12549]
[1724246274745,27.0781,141.28,141.25,0.12549]
[1724246278533,27.0781,141.28,141.24,17.7]
[1724246278919,7.0787,141.27,141.23,0.12549]
[1724246279124,7.0794,141.26,141.22,22.8034]
[1724246279845,7.0787,141.27,141.22,22.8034]
[1724246282543,7.0791,141.26,141.22,7.0809]
[1724246282745,7.0799,141.25,141.21,17.7031]
[1724246283330,7.0799,141.25,141.21,24.7847]
[1724246286767,7.0792,141.26,141.22,8.49714614]
[1724246287370,7.0792,141.26,141.22,1.41604614]
[1724246287529,7.0792,141.26,141.22,8.49694614]
[1724246288429,7.0787,141.27,141.23,7.0804]
[1724246288628,7.0787,141.27,141.24,1.54121185]
[1724246288862,7.0787,141.27,141.24,0.12549]
[1724246289961,7.0787,141.27,141.22,7.0809]
[1724246290137,7.0787,141.27,141.23,0.12549]
[1724246290756,7.0792,141.26,141.22,7.0809]
[1724246291834,7.0792,141.26,141.21,24.90999]
[1724246292032,7.0792,141.26,141.22,0.12549]
[1724246292357,7.0796,141.25,141.21,24.7845]
[1724246293149,7.0802,141.24,141.21,17.7031]
[1724246297276,7.0798,141.25,141.21,17.7031]
[1724246304896,7.0798,141.25,141.21,24.7845]
[1724246305095,7.0792,141.26,141.22,8.49717481]
[1724246305392,7.0796,141.25,141.22,1.41607481]
[1724246305592,7.0793,141.26,141.22,1.41607481]
[1724246305891,7.0788,141.27,141.22,46.41607481]
[1724246306085,7.0788,141.27,141.23,0.12549]
[1724246306264,7.0792,141.26,141.22,7.0809]
[1724246307066,7.0792,141.26,141.23,1.4159256]
[1724246307570,7.0787,141.27,141.23,8.4965256]
[1724246307763,7.0781,141.28,141.24,8.49579729]
[1724246307965,7.0781,141.28,141.23,17.7012]
[1724246307966,27.0778,141.29,141.25,7.0794]
[1724246309995,7.0784,141.28,141.23,40.8837]
[1724246310194,7.0784,141.28,141.24,0.12549]
[1724246310365,7.0784,141.28,141.24,7.20559]
[1724246310794,7.0784,141.28,141.24,8.6213184]
[1724246311093,7.0784,141.28,141.24,7.20559]
[1724246311972,7.0784,141.28,141.24,8.62130784]
[1724246312470,27.0777,141.29,141.25,7.0795]
[1724246315489,7.099,141.42,141.25,7.0795]
[1724246315490,32.816,141.35,141.26,1.41564727]
[1724246315685,46.316,141.35,141.27,0.25098]
[1724246316693,32.816,141.35,141.27,0.25098]
[1724246316879,7.0762,141.32,141.28,7.0779]
[1724246319703,7.0762,141.32,141.28,8.49326038]
[1724246320884,7.0757,141.33,141.28,8.49326038]
[1724246321088,7.0757,141.33,141.29,0.12549]
[1724246321286,7.0757,141.33,141.29,1.54074046]
[1724246322873,7.0761,141.32,141.29,1.41525046]
[1724246323083,7.0761,141.32,141.27,24.90029]
[1724246323393,7.0761,141.32,141.28,0.12549]
[1724246323899,7.0761,141.32,141.28,7.20349]
[1724246324585,7.0761,141.32,141.28,7.078]
[1724246326205,7.0761,141.32,141.27,24.90029]
[1724246327205,7.0774,141.3,141.25,6.5595]
[1724246327378,7.0767,141.31,141.26,0.25098]
[1724246328900,7.0767,141.31,141.27,7.0786]
[1724246329204,7.0767,141.31,141.26,25.02748]
[1724246329503,13.5,141.29,141.23,40.8833]
[1724246330204,7.0782,141.28,141.23,40.8833]
[1724246330576,13.5,141.29,141.23,40.8833]
[1724246330792,13.5,141.29,141.23,17.7005]
[1724246330985,20.0,141.28,141.23,17.7005]
[1724246331614,7.0791,141.27,141.23,17.7005]
[1724246331807,20.0,141.28,141.21,19.7987]
[1724246332712,20.0,141.28,141.22,1.4157675]
[1724246332893,7.0787,141.27,141.23,7.0805]
[1724246333204,7.0787,141.27,141.24,1.41576145]
[1724246333908,27.0782,141.28,141.24,1.41576145]
[1724246336094,7.0777,141.29,141.24,8.49586145]
[1724246336311,7.0777,141.29,141.25,7.20499]
[1724246336512,7.0777,141.29,141.26,1.41563067]
[1724246336831,20.8922704,141.31,141.27,8.49406151]
[1724246336832,14.4689704,141.31,141.27,8.49406151]
[1724246337110,7.0767,141.31,141.28,0.12549]
[1724246337292,7.0767,141.31,141.26,24.90189]
[1724246337494,7.0767,141.31,141.27,0.12549]
[1724246337810,7.0767,141.31,141.27,1.54091413]
[1724246337992,7.0767,141.31,141.27,8.61951413]
[1724246339109,7.0759,141.33,141.28,7.20339]
[1724246339328,7.0759,141.33,141.29,1.41527995]
[1724246339486,20.0,141.32,141.29,1.41527995]
[1724246340095,27.0761,141.32,141.29,1.41527995]
[1724246340301,27.0761,141.32,141.28,7.20339]
[1724246340606,27.0761,141.32,141.28,7.0779]
[1724246343219,27.0761,141.32,141.27,7.20389]
[1724246347922,27.0761,141.32,141.28,8.61889776]
[1724246350218,7.0761,141.32,141.28,8.61889776]
[1724246350405,7.0761,141.32,141.29,0.12549]
[1724246350593,7.0761,141.32,141.29,1.54074946]
[1724246351894,7.0761,141.32,141.29,0.12549]
[1724246352095,20.88907469,141.35,141.26,30.9684]
[1724246352096,7.0771,141.3,141.26,30.9684]
[1724246352318,7.0768,141.31,141.27,8.74466745]
[1724246353214,38.57607469,141.35,141.28,7.0778]
[1724246353215,7.0763,141.32,141.28,7.0778]
[1724246353518,7.0763,141.32,141.29,1.41526749]
[1724246356024,7.0763,141.32,141.3,1.41519026]
[1724246356226,7.0757,141.33,141.3,1.41519026]
[1724246356728,7.0743,141.36,141.31,13.73978]
[1724246356913,7.0746,141.35,141.32,1.41488547]
[1724246358220,7.0746,141.35,141.31,13.73978]
[1724246359124,7.0746,141.35,141.31,6.4125]
[1724246359125,7.0752,141.34,141.31,6.4125]
[1724246360896,7.0749,141.35,141.32,1.41507186]
[1724246361849,7.0749,141.35,141.31,13.4889]
[1724246362710,7.0749,141.35,141.32,1.41499335]
[1724246363241,7.0749,141.35,141.31,13.4889]
[1724246364130,13.5,141.37,141.31,6.4125]
[1724246364440,7.0753,141.34,141.31,6.4125]
[1724246368151,7.0753,141.34,141.3,40.80359]
[1724246368357,7.0753,141.34,141.3,40.6781]
[1724246372446,7.0753,141.34,141.3,42.09322603]
[1724246372649,7.0748,141.35,141.31,0.12549]
[1724246372955,7.0748,141.35,141.31,1.54049167]
[1724246374259,7.0748,141.35,141.31,8.61699167]
[1724246374556,7.38195944,141.4,141.32,6.1375]
[1724246374743,7.0731,141.38,141.34,7.0749]
[1724246374945,13.5,141.42,141.35,17.81199]
[1724246374946,7.0727,141.39,141.35,17.81199]
[1724246375148,7.0727,141.39,141.35,19.22665457]
[1724246376147,7.0727,141.39,141.35,17.81199]
[1724246376358,7.0727,141.39,141.35,17.6865]
[1724246377560,7.0727,141.39,141.33,45.0]
[1724246377561,13.5,141.38,141.33,7.0755]
[1724246378439,7.074,141.37,141.32,31.02829]
[1724246379467,7.0741,141.36,141.32,30.9028]
[1724246380349,15.4684,141.4,141.33,8.49045499]
[1724246380551,7.0732,141.38,141.33,7.0755]
[1724246381259,7.0732,141.38,141.34,1.41477474]
[1724246383563,7.0732,141.38,141.34,8.48957474]
[1724246383862,7.0732,141.38,141.35,0.25098]
[1724246384170,7.0732,141.38,141.34,7.0748]
[1724246384839,7.0732,141.38,141.35,1.41470546]
[1724246385943,7.0732,141.38,141.34,7.0748]
[1724246386253,13.5,141.39,141.32,30.9028]
[1724246386454,7.0738,141.37,141.32,30.9028]
[1724246388846,7.0738,141.37,141.33,7.0753]
[1724246391371,7.0732,141.38,141.34,7.0751]
[1724246391539,7.0732,141.38,141.35,0.12549]
[1724246393752,7.0732,141.38,141.34,7.0751]
[1724246396752,7.0732,141.38,141.35,1.41472839]
[1724246396970,31.57772387,141.43,141.35,30.61122839]
[1724246397267,7.071,141.43,141.36,51.45748]
[1724246397648,7.071,141.43,141.39,7.0725]
[1724246397843,7.071,141.43,141.38,24.88099]
[1724246398044,7.0712,141.42,141.38,17.80809]
[1724246398249,7.0716,141.41,141.38,17.6826]
[1724246399265,7.0716,141.41,141.37,7.0734]
[1724246399650,7.0716,141.41,141.36,51.45748]
[1724246399857,387.8,141.45,141.36,13.53138]
[1724246399858,7.0721,141.4,141.36,13.53138]
[1724246400345,7.0721,141.4,141.37,1.41452695]
[1724246401878,7.0721,141.4,141.36,13.53138]
[1724246402057,395.18404621,141.45,141.37,19.22368055]
[1724246402264,7.0707,141.43,141.38,52.19819]
[1724246402463,20.0,141.42,141.39,0.12549]
[1724246402653,20.0,141.42,141.38,7.19819]
[1724246402654,27.0712,141.42,141.38,7.19819]
[1724246403056,7.0717,141.41,141.38,0.12549]
[1724246403282,7.0717,141.41,141.37,24.88269]
[1724246406474,7.0717,141.41,141.37,26.29709287]
[1724246408080,7.0717,141.41,141.38,0.12549]
[1724246408288,7.0717,141.41,141.38,1.66530147]
[1724246408898,27.0712,141.42,141.38,8.73830147]
[1724246409491,20.0,141.42,141.36,6.2065]
[1724246409795,13.5,141.39,141.32,22.2688]
[1724246409966,13.5,141.37,141.32,22.2688]
[1724246410168,27.0743,141.36,141.32,22.2688]
[1724246410576,7.0751,141.34,141.32,22.2688]
[1724246412167,7.0748,141.35,141.33,1.54043349]
[1724246412389,7.0748,141.35,141.33,0.12549]
[1724246413098,7.0751,141.34,141.32,22.2688]
[1724246414879,7.0757,141.33,141.3,17.6925]
[1724246415890,7.0757,141.33,141.29,28.5257]
[1724246416100,7.0757,141.33,141.3,0.12549]
[1724246416620,7.0757,141.33,141.3,0.25098]
[1724246417498,7.0757,141.33,141.3,1.6661196]
[1724246420403,7.0757,141.33,141.3,0.25098]
[1724246420897,13.5,141.33,141.27,17.6957]
[1724246421075,7.0766,141.31,141.27,24.7742]
[1724246422605,7.0766,141.31,141.28,0.25098]
[1724246424608,13.5,141.31,141.24,17.6992]
[1724246424809,7.0784,141.28,141.24,17.6992]
[1724246425113,7.0783,141.28,141.25,1.41566177]
[1724246425519,7.0783,141.28,141.24,17.6992]
[1724246426103,7.0783,141.28,141.24,24.7792]
[1724246426695,7.0783,141.28,141.25,1.41565119]
[1724246427082,13.5,141.31,141.25,8.49515119]
[1724246427083,7.0776,141.29,141.25,8.49515119]
[1724246427488,7.0776,141.29,141.26,0.25098]
[1724246427713,7.0776,141.29,141.26,1.66650239]
[1724246427912,7.0762,141.32,141.27,8.49404134]
[1724246428217,7.0762,141.32,141.28,0.25098]
[1724246428384,7.0762,141.32,141.28,1.6662856]
[1724246429014,7.38659255,141.35,141.28,1.6662856]
[1724246429220,7.076,141.33,141.28,26.4390856]
[1724246429388,7.076,141.33,141.29,45.0]
[1724246429586,7.076,141.33,141.3,1.66613101]
[1724246429786,7.076,141.33,141.3,0.25098]
[1724246430486,31.1863,141.36,141.28,24.7728]
[1724246430487,7.0764,141.32,141.28,24.7728]
[1724246431010,7.0764,141.32,141.29,0.12549]
[1724246432008,7.0764,141.32,141.29,0.25098]
[1724246432408,7.0767,141.31,141.29,0.12549]
[1724246432607,13.5,141.32,141.26,7.0788]
[1724246432934,7.0776,141.29,141.25,24.778]
[1724246433291,7.0776,141.29,141.25,17.6985]
[1724246433696,7.0781,141.28,141.25,17.6985]
[1724246434099,7.0781,141.28,141.24,7.08]
[1724246435026,7.0781,141.28,141.23,13.3218]
[1724246436020,7.0787,141.27,141.23,7.0804]
[1724246436195,7.0787,141.27,141.24,0.12549]
[1724246437301,7.0792,141.26,141.24,0.12549]
[1724246437501,7.0792,141.26,141.23,0.25098]
[1724246438502,7.0787,141.27,141.23,8.74741855]
[1724246439014,7.0787,141.27,141.23,7.33158]
[1724246440618,7.0787,141.27,141.24,1.41576096]
[1724246442036,7.0787,141.27,141.23,7.33158]
[1724246443127,7.0787,141.27,141.24,1.41576217]
[1724246443338,7.0782,141.28,141.24,8.49576217]
[1724246445433,7.0782,141.28,141.24,1.41576217]
[1724246445609,7.0782,141.28,141.25,0.12549]
[1724246445931,7.0782,141.28,141.25,0.25098]
[1724246447608,7.0787,141.27,141.23,7.0805]
[1724246447814,7.0787,141.27,141.24,0.25098]
[1724246460025,7.0787,141.27,141.22,17.7019]
[1724246460026,20.5791,141.26,141.22,24.7829]
[1724246460227,7.0797,141.25,141.22,17.7019]
[1724246461744,7.0792,141.26,141.22,26.19877033]